[Event "*** Titled Tuesday Blitz"]
[Site "Chess.com"]
[Date "2020.05.19"]
[Round "4"]
[White "CarlosAlbornoz"]
[Black "ClassyEl"]
[Result "1-0"]
[WhiteElo "2681"]
[BlackElo "2488"]
[TimeControl "180+1"]
[EndTime "12:41:09 PDT"]
[Termination "CarlosAlbornoz won on time"]

1. e4 {[%clk 0:03:00.9]} 1... d6 {[%clk 0:03:00.2]} 2. d4 {[%clk 0:03:00.2]}
2... Nf6 {[%clk 0:03:00.3]} 3. Nc3 {[%clk 0:03:00.4]} 3... c6 {[%clk 0:03:00.6]}
4. f4 {[%clk 0:03:00.1]} 4... Qa5 {[%clk 0:03:00.1]} 5. Bd3 {[%clk 0:02:58.5]}
5... e5 {[%clk 0:03:00.2]} 6. Nf3 {[%clk 0:02:58.6]} 6... Bg4 {[%clk 0:03:00.1]}
7. Be3 {[%clk 0:02:58.1]} 7... Qb6 {[%clk 0:02:56.1]} 8. Qd2 {[%clk 0:02:42.2]}
8... exf4 {[%clk 0:02:54.3]} 9. Bxf4 {[%clk 0:02:37.7]} 9... Bxf3 {[%clk
0:02:54.6]} 10. gxf3 {[%clk 0:02:37.4]} 10... Qxd4 {[%clk 0:02:54.3]} 11. O-O-O
{[%clk 0:02:34.6]} 11... Nbd7 {[%clk 0:02:47.1]} 12. a3 {[%clk 0:02:15.8]} 12...
Qc5 {[%clk 0:02:35.3]} 13. Be2 {[%clk 0:02:10.3]} 13... Be7 {[%clk 0:02:23.5]}
14. Kb1 {[%clk 0:02:02.7]} 14... Ne5 {[%clk 0:02:04.9]} 15. Be3 {[%clk
0:02:01.8]} 15... Nc4 {[%clk 0:02:03.1]} 16. Bxc4 {[%clk 0:01:54.8]} 16... Qxc4
{[%clk 0:02:03.1]} 17. Rhg1 {[%clk 0:01:51.9]} 17... g6 {[%clk 0:02:00.7]} 18.
Bd4 {[%clk 0:01:46.5]} 18... O-O-O {[%clk 0:01:35.5]} 19. Bxa7 {[%clk
0:01:35.7]} 19... c5 {[%clk 0:01:17.1]} 20. Bb6 {[%clk 0:01:33.2]} 20... Rd7
{[%clk 0:01:11.2]} 21. Qd3 {[%clk 0:01:32]} 21... Qa6 {[%clk 0:01:02.8]} 22. Qb5
{[%clk 0:01:11.7]} 22... Nh5 {[%clk 0:00:51.9]} 23. Qxa6 {[%clk 0:01:07.5]}
23... bxa6 {[%clk 0:00:51.8]} 24. Nd5 {[%clk 0:01:08.4]} 24... Kb7 {[%clk
0:00:44.3]} 25. Ba5 {[%clk 0:01:07.1]} 25... Bd8 {[%clk 0:00:36.7]} 26. Bxd8
{[%clk 0:00:57.2]} 26... Rhxd8 {[%clk 0:00:36.5]} 27. Rd3 {[%clk 0:00:57.4]}
27... Kc6 {[%clk 0:00:36.5]} 28. Rgd1 {[%clk 0:00:56.2]} 28... Rb8 {[%clk
0:00:31.5]} 29. Ne3 {[%clk 0:00:44]} 29... Nf4 {[%clk 0:00:29.4]} 30. R3d2
{[%clk 0:00:44.2]} 30... f6 {[%clk 0:00:20.5]} 31. Nc4 {[%clk 0:00:42.8]} 31...
Rbd8 {[%clk 0:00:20.1]} 32. Ne3 {[%clk 0:00:40.5]} 32... Ne6 {[%clk 0:00:18.8]}
33. Nd5 {[%clk 0:00:39.8]} 33... Rf7 {[%clk 0:00:18]} 34. Re1 {[%clk 0:00:37]}
34... Nd4 {[%clk 0:00:17.2]} 35. Re3 {[%clk 0:00:35.6]} 35... Re8 {[%clk
0:00:16.5]} 36. c3 {[%clk 0:00:33.7]} 36... Nb5 {[%clk 0:00:16.6]} 37. Red3
{[%clk 0:00:30.2]} 37... Rd8 {[%clk 0:00:13.2]} 38. a4 {[%clk 0:00:29.6]} 38...
Na7 {[%clk 0:00:12.7]} 39. Ne3 {[%clk 0:00:28.2]} 39... Nc8 {[%clk 0:00:10.9]}
40. b4 {[%clk 0:00:26.1]} 40... Rfd7 {[%clk 0:00:10]} 41. Nd5 {[%clk 0:00:22]}
41... Rf7 {[%clk 0:00:08.6]} 42. Kb2 {[%clk 0:00:21.4]} 42... f5 {[%clk
0:00:06.7]} 43. e5 {[%clk 0:00:19.7]} 1-0

[Event "*** Titled Tuesday Blitz"]
[Site "Chess.com"]
[Date "2020.05.19"]
[Round "4"]
[White "GoValya"]
[Black "csati17"]
[Result "0-1"]
[WhiteElo "2203"]
[BlackElo "2556"]
[TimeControl "180+1"]
[EndTime "12:41:09 PDT"]
[Termination "csati17 won on time"]

1. d4 {[%clk 0:03:00.9]} 1... Nf6 {[%clk 0:03:00]} 2. c4 {[%clk 0:03:00.2]} 2...
g6 {[%clk 0:03:00.3]} 3. g3 {[%clk 0:03:00.2]} 3... Bg7 {[%clk 0:03:00.3]} 4.
Bg2 {[%clk 0:03:00.5]} 4... O-O {[%clk 0:03:00.8]} 5. Nc3 {[%clk 0:03:00.6]}
5... c6 {[%clk 0:02:59.3]} 6. d5 {[%clk 0:02:59.4]} 6... cxd5 {[%clk 0:02:58.1]}
7. cxd5 {[%clk 0:02:59.2]} 7... d6 {[%clk 0:02:56.7]} 8. Nf3 {[%clk 0:02:58.7]}
8... Na6 {[%clk 0:02:49.2]} 9. O-O {[%clk 0:02:57.9]} 9... Bd7 {[%clk
0:02:46.8]} 10. Be3 {[%clk 0:02:57.2]} 10... b6 {[%clk 0:02:43.4]} 11. Nd4
{[%clk 0:02:55.9]} 11... Ng4 {[%clk 0:02:39.5]} 12. Bg5 {[%clk 0:02:51.8]} 12...
h6 {[%clk 0:02:36.1]} 13. Bc1 {[%clk 0:02:43]} 13... Rc8 {[%clk 0:02:17.9]} 14.
h3 {[%clk 0:02:27]} 14... Ne5 {[%clk 0:02:17.7]} 15. f4 {[%clk 0:02:27]} 15...
Nc4 {[%clk 0:02:15.9]} 16. b3 {[%clk 0:02:19.8]} 16... Ne3 {[%clk 0:01:59]} 17.
Bxe3 {[%clk 0:02:19]} 17... Rxc3 {[%clk 0:01:59.5]} 18. Bf2 {[%clk 0:02:18.9]}
18... Qc7 {[%clk 0:01:39.9]} 19. Rc1 {[%clk 0:02:09]} 19... Rc8 {[%clk
0:01:39.5]} 20. Nc6 {[%clk 0:02:06.1]} 20... Rxc1 {[%clk 0:01:27.1]} 21. Qxc1
{[%clk 0:01:57.7]} 21... Bxc6 {[%clk 0:01:12]} 22. dxc6 {[%clk 0:01:57.4]} 22...
e6 {[%clk 0:01:10.3]} 23. Qc4 {[%clk 0:01:41.7]} 23... Nb8 {[%clk 0:01:10]} 24.
Rc1 {[%clk 0:01:40.7]} 24... d5 {[%clk 0:01:09.6]} 25. Qd3 {[%clk 0:01:32.6]}
25... Nxc6 {[%clk 0:00:44.7]} 26. e4 {[%clk 0:01:32.3]} 26... Qd6 {[%clk
0:00:35.6]} 27. exd5 {[%clk 0:01:30.2]} 27... Rd8 {[%clk 0:00:36.1]} 28. Qb5
{[%clk 0:00:46.4]} 28... Nd4 {[%clk 0:00:31.8]} 29. Qd3 {[%clk 0:00:45.5]} 29...
Nf5 {[%clk 0:00:28.5]} 30. Rd1 {[%clk 0:00:41.2]} 30... Ne7 {[%clk 0:00:22.9]}
31. Qa6 {[%clk 0:00:34.5]} 31... Rd7 {[%clk 0:00:20.6]} 32. Bf3 {[%clk
0:00:26.9]} 32... Nxd5 {[%clk 0:00:20.3]} 33. Qc8+ {[%clk 0:00:23.4]} 33... Kh7
{[%clk 0:00:20.6]} 34. Kg2 {[%clk 0:00:20.2]} 34... Rc7 {[%clk 0:00:19.4]} 35.
Qe8 {[%clk 0:00:19.5]} 35... Rc2 {[%clk 0:00:18.4]} 36. Qxf7 {[%clk 0:00:15.8]}
36... Ne3+ {[%clk 0:00:18.3]} 37. Kg1 {[%clk 0:00:15.8]} 37... Nxd1 {[%clk
0:00:16.6]} 38. Be4 {[%clk 0:00:15.7]} 38... Rxf2 {[%clk 0:00:12.6]} 39. Qxg6+
{[%clk 0:00:12.1]} 39... Kg8 {[%clk 0:00:12.2]} 40. Qe8+ {[%clk 0:00:09.1]}
40... Qf8 {[%clk 0:00:12.6]} 41. Qxe6+ {[%clk 0:00:07.5]} 41... Qf7 {[%clk
0:00:13.1]} 42. Bh7+ {[%clk 0:00:02.3]} 42... Kf8 {[%clk 0:00:13.2]} 43. Qd6+
{[%clk 0:00:01.2]} 43... Qe7 {[%clk 0:00:12.9]} 0-1

[Event "*** Titled Tuesday Blitz"]
[Site "Chess.com"]
[Date "2020.05.19"]
[Round "4"]
[White "wnstop"]
[Black "Kobalia"]
[Result "1-0"]
[WhiteElo "2628"]
[BlackElo "2794"]
[TimeControl "180+1"]
[EndTime "12:41:10 PDT"]
[Termination "wnstop won on time"]

1. e4 {[%clk 0:03:00.9]} 1... c6 {[%clk 0:02:59.3]} 2. d4 {[%clk 0:02:59.2]}
2... d5 {[%clk 0:02:59.5]} 3. e5 {[%clk 0:02:59.3]} 3... Bf5 {[%clk 0:02:58.9]}
4. Bd3 {[%clk 0:02:59.2]} 4... Bxd3 {[%clk 0:02:56.8]} 5. Qxd3 {[%clk
0:03:00.1]} 5... e6 {[%clk 0:02:57]} 6. Ne2 {[%clk 0:02:57.7]} 6... Qa5+ {[%clk
0:02:53.8]} 7. c3 {[%clk 0:02:56.9]} 7... Qa6 {[%clk 0:02:53.7]} 8. Qd1 {[%clk
0:02:56.4]} 8... c5 {[%clk 0:02:52.9]} 9. O-O {[%clk 0:02:54.1]} 9... Nc6 {[%clk
0:02:52.6]} 10. Nd2 {[%clk 0:02:54.1]} 10... Nh6 {[%clk 0:02:41.4]} 11. Nf3
{[%clk 0:02:53.2]} 11... Nf5 {[%clk 0:02:40.7]} 12. g4 {[%clk 0:02:44.7]} 12...
Nfe7 {[%clk 0:02:39.8]} 13. Ng3 {[%clk 0:02:44.2]} 13... cxd4 {[%clk 0:02:33.3]}
14. cxd4 {[%clk 0:02:43.5]} 14... Rc8 {[%clk 0:02:31.9]} 15. Bd2 {[%clk
0:02:26.6]} 15... g6 {[%clk 0:02:13.1]} 16. a3 {[%clk 0:02:01.5]} 16... Bg7
{[%clk 0:02:11.1]} 17. Rc1 {[%clk 0:01:53.8]} 17... O-O {[%clk 0:02:10.3]} 18.
Bc3 {[%clk 0:01:34.3]} 18... Rc7 {[%clk 0:02:04.5]} 19. Bb4 {[%clk 0:00:58.8]}
19... Re8 {[%clk 0:01:56.9]} 20. Ne1 {[%clk 0:00:47.1]} 20... Rd7 {[%clk
0:01:35.4]} 21. Bc3 {[%clk 0:00:42.7]} 21... f6 {[%clk 0:01:26.7]} 22. Nd3
{[%clk 0:00:40.9]} 22... b6 {[%clk 0:01:07.6]} 23. f4 {[%clk 0:00:40.2]} 23...
fxe5 {[%clk 0:01:00.7]} 24. fxe5 {[%clk 0:00:41.1]} 24... Nd8 {[%clk 0:00:48.7]}
25. Rf3 {[%clk 0:00:29.8]} 25... Rf8 {[%clk 0:00:47.1]} 26. Rc2 {[%clk
0:00:24.2]} 26... Rxf3 {[%clk 0:00:45.8]} 27. Qxf3 {[%clk 0:00:25.1]} 27... Nec6
{[%clk 0:00:44.6]} 28. Rf2 {[%clk 0:00:23.7]} 28... Rf7 {[%clk 0:00:44.1]} 29.
Qe3 {[%clk 0:00:22.4]} 29... Qc4 {[%clk 0:00:40.8]} 30. Rxf7 {[%clk 0:00:19.7]}
30... Nxf7 {[%clk 0:00:40]} 31. Nf4 {[%clk 0:00:20.1]} 31... Bh6 {[%clk
0:00:28.8]} 32. Nge2 {[%clk 0:00:19.9]} 32... Ng5 {[%clk 0:00:21.6]} 33. h4
{[%clk 0:00:16.5]} 33... Ne4 {[%clk 0:00:19.4]} 34. g5 {[%clk 0:00:16.8]} 34...
Bf8 {[%clk 0:00:18.8]} 35. h5 {[%clk 0:00:16.9]} 35... gxh5 {[%clk 0:00:14.6]}
36. Nxe6 {[%clk 0:00:17]} 36... Bxa3 {[%clk 0:00:12]} 37. bxa3 {[%clk
0:00:14.7]} 37... Qb3 {[%clk 0:00:09]} 38. N6f4 {[%clk 0:00:12.6]} 38... Qd1+
{[%clk 0:00:08.5]} 39. Kg2 {[%clk 0:00:12.5]} 39... h4 {[%clk 0:00:08.2]} 40.
Nxd5 {[%clk 0:00:08.2]} 40... Qc2 {[%clk 0:00:07.2]} 41. Nf6+ {[%clk 0:00:06.7]}
41... Nxf6 {[%clk 0:00:06.7]} 42. gxf6 {[%clk 0:00:07.6]} 42... Qg6+ {[%clk
0:00:05.3]} 43. Kh2 {[%clk 0:00:07.8]} 43... Kf7 {[%clk 0:00:01.8]} 44. d5
{[%clk 0:00:07.3]} 1-0

[Event "*** Titled Tuesday Blitz"]
[Site "Chess.com"]
[Date "2020.05.19"]
[Round "4"]
[White "Er_is_geen_hoop_meer"]
[Black "AleksanderHnydiuk"]
[Result "1-0"]
[WhiteElo "2424"]
[BlackElo "2569"]
[TimeControl "180+1"]
[EndTime "12:41:10 PDT"]
[Termination "Er_is_geen_hoop_meer won on time"]

1. b4 {[%clk 0:03:00.9]} 1... e5 {[%clk 0:02:59.3]} 2. a3 {[%clk 0:02:58.9]}
2... d5 {[%clk 0:02:57.1]} 3. Bb2 {[%clk 0:02:53.1]} 3... Bd6 {[%clk 0:02:56.9]}
4. c4 {[%clk 0:02:49.1]} 4... c6 {[%clk 0:02:52.5]} 5. Nf3 {[%clk 0:02:47.7]}
5... Nd7 {[%clk 0:02:38.3]} 6. e3 {[%clk 0:02:47.6]} 6... Ngf6 {[%clk
0:02:37.6]} 7. Nc3 {[%clk 0:02:47.9]} 7... O-O {[%clk 0:02:36.4]} 8. Qc2 {[%clk
0:02:48.4]} 8... Re8 {[%clk 0:02:32.4]} 9. Rc1 {[%clk 0:02:48.1]} 9... d4 {[%clk
0:02:27]} 10. Ne2 {[%clk 0:02:48.1]} 10... c5 {[%clk 0:02:14]} 11. bxc5 {[%clk
0:02:49]} 11... Nxc5 {[%clk 0:02:05.7]} 12. exd4 {[%clk 0:02:49]} 12... exd4
{[%clk 0:01:45.7]} 13. Bxd4 {[%clk 0:02:49.9]} 13... Bg4 {[%clk 0:01:44.7]} 14.
Ng5 {[%clk 0:02:48]} 14... h6 {[%clk 0:01:32.6]} 15. f3 {[%clk 0:02:46.7]} 15...
Bh5 {[%clk 0:01:18.8]} 16. Nh3 {[%clk 0:02:46.2]} 16... Bg6 {[%clk 0:01:17.5]}
17. Qc3 {[%clk 0:02:44.8]} 17... Nd3+ {[%clk 0:01:14.2]} 18. Kd1 {[%clk
0:02:45.3]} 18... Nxc1 {[%clk 0:00:54.3]} 19. Nxc1 {[%clk 0:02:46.2]} 19... Rc8
{[%clk 0:00:51.9]} 20. g4 {[%clk 0:02:43.2]} 20... Nd5 {[%clk 0:00:48.4]} 21.
Qb3 {[%clk 0:02:40.8]} 21... Nf4 {[%clk 0:00:45.2]} 22. Nf2 {[%clk 0:02:40.2]}
22... b6 {[%clk 0:00:34.3]} 23. h4 {[%clk 0:02:39.5]} 23... Bf8 {[%clk
0:00:31.1]} 24. Be3 {[%clk 0:02:38.5]} 24... Ne6 {[%clk 0:00:25.6]} 25. h5
{[%clk 0:02:36.4]} 25... Bh7 {[%clk 0:00:25.6]} 26. Ncd3 {[%clk 0:02:34.5]}
26... Nd4 {[%clk 0:00:24.5]} 27. Qb2 {[%clk 0:02:33.9]} 27... Nxf3 {[%clk
0:00:23.4]} 28. g5 {[%clk 0:02:26]} 28... Nxg5 {[%clk 0:00:22.8]} 29. Rg1 {[%clk
0:02:25.9]} 29... Be7 {[%clk 0:00:17.8]} 30. Bd4 {[%clk 0:02:19.3]} 30... Bf6
{[%clk 0:00:16.1]} 31. Bxf6 {[%clk 0:02:17.5]} 31... Qxf6 {[%clk 0:00:17]} 32.
Qxf6 {[%clk 0:02:17]} 32... gxf6 {[%clk 0:00:17.9]} 33. Nb4 {[%clk 0:02:14.1]}
33... Kg7 {[%clk 0:00:16.8]} 34. Nd5 {[%clk 0:02:12.4]} 34... Rcd8 {[%clk
0:00:15.1]} 35. Rg3 {[%clk 0:02:12.4]} 35... Be4 {[%clk 0:00:13.1]} 36. Ne3
{[%clk 0:02:09]} 36... Re6 {[%clk 0:00:08.2]} 37. Bh3 {[%clk 0:02:08.2]} 37...
Re5 {[%clk 0:00:06.9]} 38. Nfg4 {[%clk 0:02:07]} 38... Re7 {[%clk 0:00:06.4]}
39. Nf2 {[%clk 0:02:06.8]} 39... Ree8 {[%clk 0:00:06]} 40. Kc1 {[%clk
0:02:05.5]} 40... Rd4 {[%clk 0:00:05.4]} 41. Kd1 {[%clk 0:02:04.8]} 41... Bh7
{[%clk 0:00:03.4]} 42. Nfg4 {[%clk 0:01:38.7]} 42... Red8 {[%clk 0:00:02.9]} 43.
Rg2 {[%clk 0:01:39.1]} 43... f5 {[%clk 0:00:01.7]} 44. Nh2 {[%clk 0:01:37.6]}
44... Kf6 {[%clk 0:00:01.8]} 45. Nd5+ {[%clk 0:01:37.6]} 45... R4xd5 {[%clk
0:00:01.6]} 46. cxd5 {[%clk 0:01:38.5]} 46... Rxd5 {[%clk 0:00:02.1]} 47. Nf1
{[%clk 0:01:38.4]} 47... Ne4 {[%clk 0:00:02.2]} 48. Kc2 {[%clk 0:01:37.2]} 48...
Ng5 {[%clk 0:00:02.2]} 49. Rh2 {[%clk 0:01:36]} 49... f4+ {[%clk 0:00:03.1]} 50.
Kd1 {[%clk 0:01:35]} 50... Nxh3 {[%clk 0:00:04]} 51. Rxh3 {[%clk 0:01:35.6]}
51... Bf5 {[%clk 0:00:04.2]} 52. Rc3 {[%clk 0:01:34]} 52... Kg5 {[%clk
0:00:05.1]} 53. Nh2 {[%clk 0:01:33.2]} 53... Bg4+ {[%clk 0:00:06]} 54. Ke1
{[%clk 0:01:33.4]} 54... f3 {[%clk 0:00:05.8]} 55. Re3 {[%clk 0:01:29.4]} 55...
Rf5 {[%clk 0:00:05.3]} 56. Kf2 {[%clk 0:01:29.1]} 56... Bxh5 {[%clk 0:00:04.8]}
57. Re7 {[%clk 0:01:25.8]} 57... a5 {[%clk 0:00:04.7]} 58. Rb7 {[%clk
0:01:25.5]} 58... Rf6 {[%clk 0:00:05]} 59. a4 {[%clk 0:01:25]} 59... Bg4 {[%clk
0:00:05]} 60. Nf1 {[%clk 0:01:25]} 60... h5 {[%clk 0:00:05.3]} 61. Rb8 {[%clk
0:01:25.5]} 61... h4 {[%clk 0:00:04.7]} 62. Rg8+ {[%clk 0:01:26]} 62... Kf4
{[%clk 0:00:05]} 63. Ne3 {[%clk 0:01:25.2]} 63... Be6 {[%clk 0:00:04.4]} 64. Rh8
{[%clk 0:01:25.4]} 64... h3 {[%clk 0:00:03.2]} 65. Rh4+ {[%clk 0:01:25.8]} 65...
Kg5 {[%clk 0:00:03]} 66. Rh8 {[%clk 0:01:26.2]} 66... Rg6 {[%clk 0:00:03.2]} 67.
Kxf3 {[%clk 0:01:25.2]} 67... Kf6 {[%clk 0:00:03.3]} 68. d4 {[%clk 0:01:22.5]}
68... Rg1 {[%clk 0:00:02.8]} 69. d5 {[%clk 0:01:22.3]} 69... Bd7 {[%clk
0:00:03]} 70. Rh6+ {[%clk 0:01:21.5]} 70... Ke5 {[%clk 0:00:02.1]} 71. Nc4+
{[%clk 0:01:20.1]} 71... Kxd5 {[%clk 0:00:01.9]} 72. Nxb6+ {[%clk 0:01:20.7]}
72... Kd4 {[%clk 0:00:02.3]} 73. Nxd7 {[%clk 0:01:21]} 73... Rf1+ {[%clk
0:00:01.8]} 74. Ke2 {[%clk 0:01:19.2]} 74... Rh1 {[%clk 0:00:01.4]} 75. Rh4+
{[%clk 0:01:16]} 1-0

[Event "*** Titled Tuesday Blitz"]
[Site "Chess.com"]
[Date "2020.05.19"]
[Round "4"]
[White "SerGo055"]
[Black "Piotrek1979"]
[Result "1-0"]
[WhiteElo "2577"]
[BlackElo "2368"]
[TimeControl "180+1"]
[EndTime "12:41:10 PDT"]
[Termination "SerGo055 won on time"]

1. d4 {[%clk 0:03:00.9]} 1... Nf6 {[%clk 0:02:58.8]} 2. Nf3 {[%clk 0:02:58.2]}
2... d6 {[%clk 0:02:58.8]} 3. c4 {[%clk 0:02:58.1]} 3... Nbd7 {[%clk 0:02:59.7]}
4. g3 {[%clk 0:02:54]} 4... e5 {[%clk 0:02:59.2]} 5. Bg2 {[%clk 0:02:54]} 5...
g6 {[%clk 0:02:59.6]} 6. O-O {[%clk 0:02:53.4]} 6... Bg7 {[%clk 0:02:59.7]} 7.
Nc3 {[%clk 0:02:52.7]} 7... O-O {[%clk 0:02:59.8]} 8. b3 {[%clk 0:02:52.4]} 8...
c6 {[%clk 0:02:59.9]} 9. Ba3 {[%clk 0:02:51.8]} 9... exd4 {[%clk 0:02:51.7]} 10.
Nxd4 {[%clk 0:02:45.7]} 10... Nc5 {[%clk 0:02:44.9]} 11. e3 {[%clk 0:02:29.3]}
11... a5 {[%clk 0:02:35.6]} 12. Qc2 {[%clk 0:02:19.7]} 12... Qe7 {[%clk
0:02:34.6]} 13. Rad1 {[%clk 0:02:17.8]} 13... Re8 {[%clk 0:02:20.5]} 14. Bb2
{[%clk 0:02:08.9]} 14... Bg4 {[%clk 0:02:14.6]} 15. Rc1 {[%clk 0:01:51.3]} 15...
Rad8 {[%clk 0:02:11.7]} 16. h3 {[%clk 0:01:48.2]} 16... Bc8 {[%clk 0:02:10.8]}
17. Rfd1 {[%clk 0:01:45.6]} 17... h5 {[%clk 0:02:08.2]} 18. a3 {[%clk
0:01:41.8]} 18... Nfe4 {[%clk 0:01:42]} 19. Nxe4 {[%clk 0:01:15.3]} 19... Nxe4
{[%clk 0:01:42.9]} 20. b4 {[%clk 0:01:10.2]} 20... axb4 {[%clk 0:01:00.4]} 21.
axb4 {[%clk 0:01:11.1]} 21... Nxg3 {[%clk 0:00:45.9]} 22. fxg3 {[%clk
0:01:03.3]} 22... Qxe3+ {[%clk 0:00:45.5]} 23. Qf2 {[%clk 0:01:03]} 23... c5
{[%clk 0:00:45.6]} 24. bxc5 {[%clk 0:00:51.3]} 24... dxc5 {[%clk 0:00:43.2]} 25.
Qxe3 {[%clk 0:00:50.8]} 25... Rxe3 {[%clk 0:00:41.4]} 26. Nc2 {[%clk 0:00:47.4]}
26... Rxd1+ {[%clk 0:00:32]} 27. Rxd1 {[%clk 0:00:46]} 27... Rxg3 {[%clk
0:00:07.6]} 28. Rd8+ {[%clk 0:00:39]} 28... Kh7 {[%clk 0:00:07.6]} 29. Bxg7
{[%clk 0:00:38]} 29... Bxh3 {[%clk 0:00:07.2]} 30. Bf6 {[%clk 0:00:36.5]} 30...
Rxg2+ {[%clk 0:00:07.2]} 31. Kh1 {[%clk 0:00:33.3]} 31... g5 {[%clk 0:00:08.1]}
32. Ne3 {[%clk 0:00:28.5]} 32... Re2 {[%clk 0:00:05.2]} 33. Bxg5 {[%clk
0:00:25.3]} 33... Kg6 {[%clk 0:00:04.4]} 34. Bf4 {[%clk 0:00:18.8]} 34... Be6
{[%clk 0:00:05.1]} 35. Rg8+ {[%clk 0:00:16.1]} 35... Kf6 {[%clk 0:00:04.6]} 36.
Kg1 {[%clk 0:00:08.3]} 36... Rb2 {[%clk 0:00:02.9]} 37. Bg5+ {[%clk 0:00:06.2]}
37... Ke5 {[%clk 0:00:02.2]} 38. Rh8 {[%clk 0:00:06.1]} 38... Rb1+ {[%clk
0:00:02.9]} 39. Kf2 {[%clk 0:00:05.2]} 39... b5 {[%clk 0:00:03.8]} 40. cxb5
{[%clk 0:00:05]} 40... Rb2+ {[%clk 0:00:04]} 41. Kg3 {[%clk 0:00:04.1]} 41...
Rb1 {[%clk 0:00:04.9]} 42. Rxh5 {[%clk 0:00:04.4]} 42... Rb3 {[%clk 0:00:02.8]}
43. Bf4+ {[%clk 0:00:04]} 43... Kf6 {[%clk 0:00:01.8]} 44. Rxc5 {[%clk
0:00:03.9]} 1-0

[Event "*** Titled Tuesday Blitz"]
[Site "Chess.com"]
[Date "2020.05.19"]
[Round "4"]
[White "TheoSlade"]
[Black "dougie47"]
[Result "1-0"]
[WhiteElo "2396"]
[BlackElo "2160"]
[TimeControl "180+1"]
[EndTime "12:41:10 PDT"]
[Termination "TheoSlade won on time"]

1. d4 {[%clk 0:03:00.9]} 1... Nf6 {[%clk 0:02:59.9]} 2. c4 {[%clk 0:03:01.4]}
2... e6 {[%clk 0:03:00.3]} 3. g3 {[%clk 0:03:02]} 3... d5 {[%clk 0:02:59.8]} 4.
Bg2 {[%clk 0:03:02.5]} 4... dxc4 {[%clk 0:03:00.7]} 5. Nf3 {[%clk 0:03:02.7]}
5... a6 {[%clk 0:03:01.2]} 6. O-O {[%clk 0:03:00.2]} 6... Nc6 {[%clk 0:03:01.4]}
7. a4 {[%clk 0:02:47.5]} 7... Rb8 {[%clk 0:02:56.9]} 8. a5 {[%clk 0:02:39.3]}
8... Bb4 {[%clk 0:02:55.7]} 9. Nbd2 {[%clk 0:02:25.9]} 9... c3 {[%clk
0:02:42.9]} 10. Nc4 {[%clk 0:02:12.8]} 10... cxb2 {[%clk 0:02:26.8]} 11. Bxb2
{[%clk 0:02:13.7]} 11... O-O {[%clk 0:02:25.3]} 12. Nfe5 {[%clk 0:02:10.1]}
12... Nxe5 {[%clk 0:02:12.4]} 13. Nxe5 {[%clk 0:02:11]} 13... Bd6 {[%clk
0:02:04]} 14. Qc2 {[%clk 0:02:03.8]} 14... Bd7 {[%clk 0:01:57.2]} 15. Rac1
{[%clk 0:01:51.5]} 15... Bb5 {[%clk 0:01:55]} 16. Rfd1 {[%clk 0:01:46.2]} 16...
c6 {[%clk 0:01:48.9]} 17. Bc3 {[%clk 0:01:38.8]} 17... Bc7 {[%clk 0:01:32.6]}
18. Qa2 {[%clk 0:01:33.9]} 18... Nd5 {[%clk 0:01:06.7]} 19. Be1 {[%clk
0:01:32.7]} 19... Qe7 {[%clk 0:00:46]} 20. Nc4 {[%clk 0:01:31]} 20... Rbd8
{[%clk 0:00:32.1]} 21. e4 {[%clk 0:01:19.8]} 21... Nf6 {[%clk 0:00:31.2]} 22.
Qb3 {[%clk 0:01:15.9]} 22... e5 {[%clk 0:00:30.5]} 23. Bb4 {[%clk 0:01:11.5]}
23... Qe6 {[%clk 0:00:24.5]} 24. Bxf8 {[%clk 0:01:09.3]} 24... Rxf8 {[%clk
0:00:22.2]} 25. dxe5 {[%clk 0:00:57.4]} 25... Bxe5 {[%clk 0:00:21.2]} 26. Qb4
{[%clk 0:00:46.1]} 26... Bc7 {[%clk 0:00:19.6]} 27. Na3 {[%clk 0:00:38.5]} 27...
Re8 {[%clk 0:00:14.5]} 28. Nxb5 {[%clk 0:00:38.2]} 28... axb5 {[%clk 0:00:14.8]}
29. Re1 {[%clk 0:00:25.4]} 29... h6 {[%clk 0:00:14.5]} 30. Rcd1 {[%clk
0:00:22.7]} 30... Ra8 {[%clk 0:00:13.9]} 31. Ra1 {[%clk 0:00:21.1]} 31... Qe5
{[%clk 0:00:11.8]} 32. Bf3 {[%clk 0:00:20]} 32... Bd6 {[%clk 0:00:09.5]} 33. Qd2
{[%clk 0:00:19]} 33... Qe7 {[%clk 0:00:08.9]} 34. Kg2 {[%clk 0:00:19.2]} 34...
Bb4 {[%clk 0:00:08.7]} 35. Qa2 {[%clk 0:00:16.7]} 35... Bxe1 {[%clk 0:00:08.7]}
36. Rxe1 {[%clk 0:00:17.6]} 36... Qb4 {[%clk 0:00:07.7]} 37. Ra1 {[%clk
0:00:16.1]} 37... Nxe4 {[%clk 0:00:07.1]} 38. Rb1 {[%clk 0:00:14.9]} 38... Nc3
{[%clk 0:00:06.6]} 39. Rxb4 {[%clk 0:00:13]} 39... Nxa2 {[%clk 0:00:06.6]} 40.
Rb2 {[%clk 0:00:12.9]} 40... Nc3 {[%clk 0:00:06.6]} 41. Rc2 {[%clk 0:00:11.7]}
41... Na4 {[%clk 0:00:06.6]} 42. Rd2 {[%clk 0:00:09.6]} 42... Rxa5 {[%clk
0:00:06.5]} 43. Rd8+ {[%clk 0:00:10]} 43... Kh7 {[%clk 0:00:06.1]} 44. Rd7
{[%clk 0:00:10.9]} 44... Kg6 {[%clk 0:00:04.9]} 45. Rxb7 {[%clk 0:00:10.5]}
45... Nc3 {[%clk 0:00:03.1]} 46. Bxc6 {[%clk 0:00:10.1]} 46... Ra2 {[%clk
0:00:01.3]} 47. Bxb5 {[%clk 0:00:08.4]} 1-0